fUST/lending_fUST_20240706
["ID","MTS","AMOUNT","RATE_DAILY","PERIOD"]
[331324678,1720230643031,-1002.41632879,0.00049295,2]
[331324679,1720230643049,-151.0,0.00049295,14]
[331324680,1720230643065,-151.0,0.00049295,14]
[331324681,1720230643082,-151.0,0.00049295,14]
[331324682,1720230643095,-151.0,0.00049295,14]
[331324683,1720230643108,-151.0,0.00049295,14]
[331324684,1720230643121,-256.215229,0.00049295,14]
[331324685,1720230643132,-433.273874,0.00049295,14]
[331324686,1720230643144,-433.273874,0.00049295,14]
[331324687,1720230643156,-151.0,0.00049295,14]
[331324688,1720230643169,-1492.708595,0.00049295,14]
[331324689,1720230643182,-1492.708595,0.00049295,14]
[331324690,1720230643194,-151.0,0.00049295,14]
[331324691,1720230643209,-586.079491,0.00049295,14]
[331324692,1720230643221,-586.079491,0.00049295,14]
[331324693,1720230643234,-574.513147,0.00049295,14]
[331324694,1720230643246,-574.513147,0.00049295,14]
[331324695,1720230643258,-1165.562013,0.00049295,14]
[331324696,1720230643271,-151.0,0.00049295,14]
[331324697,1720230643284,-1165.562013,0.00049295,14]
[331324698,1720230643306,-237.732392,0.00049295,14]
[331324699,1720230643318,-237.732392,0.00049295,14]
[331324700,1720230643331,-312.677068,0.00049295,14]
[331324701,1720230643343,-312.677068,0.00049295,14]
[331324702,1720230643354,-8527.58038062,0.00049305,61]
[331324703,1720230643367,-180.084888,0.00049305,14]
[331324704,1720230643379,-151.0,0.00049305,14]
[331324705,1720230643390,-151.0,0.00049305,14]
[331324706,1720230643402,-151.0,0.00049305,14]
[331324707,1720230643414,-151.0,0.00049305,14]
[331324708,1720230643426,-151.0,0.00049305,14]
[331324709,1720230643436,-151.0,0.00049305,14]
[331324710,1720230643448,-151.0,0.00049305,14]
[331324712,1720230643459,-151.0,0.00049305,14]
[331324714,1720230643469,-151.0,0.00049305,14]
[331324716,1720230643479,-151.0,0.00049305,14]
[331324718,1720230643490,-433.273874,0.00049305,14]
[331324722,1720230643502,-433.273874,0.00049305,14]
[331324727,1720230643512,-151.0,0.00049305,14]
[331324730,1720230643524,-1492.708595,0.00049305,14]
[331324731,1720230643537,-1492.708595,0.00049305,14]
[331324732,1720230643548,-218.999364,0.00049305,14]
[331324735,1720230643560,-586.079491,0.00049305,14]
[331324737,1720230643571,-586.079491,0.00049305,14]
[331324739,1720230643584,-574.513147,0.00049305,14]
[331324741,1720230643596,-574.513147,0.00049305,14]
[331324744,1720230643610,-1165.562013,0.00049305,14]
[331324746,1720230643622,-151.0,0.00049305,14]
[331324748,1720230643636,-1165.562013,0.00049305,14]
[331324750,1720230643647,-237.732392,0.00049305,14]
[331324751,1720230643657,-237.732392,0.00049305,14]
[331324753,1720230643668,-312.677068,0.00049305,14]
[331324755,1720230643678,-312.677068,0.00049305,14]
[331324757,1720230643688,-13349.7571654,0.00049305,6]
[331324760,1720230643703,-38940.7650054,0.00049305,6]
[331324762,1720230643715,-308.72161732,0.00049314,120]
[331324764,1720230643727,-183.15377598,0.00049314,31]
[331324767,1720230643738,-194.98612435,0.00049314,120]
[331324768,1720230643750,-500.0,0.00049314,120]
[331324769,1720230643763,-418.64581642,0.00049314,120]
[331324770,1720230643772,-500.0,0.00049314,120]
[331324771,1720230643782,-500.0,0.00049314,120]
[331324772,1720230643793,-500.0,0.00049314,120]
[331324773,1720230643804,-123.59364981,0.00049315,120]
[331324791,1720230654259,155.62578204,0.00043834,4]
[331324792,1720230655464,1445.07626415,0.00043834,4]
[331324793,1720230655887,362.27114945,0.00043834,3]
[331324794,1720230687227,352.71953724,0.00043834,30]
[331324795,1720230696235,1188.5765511,0.00032046,120]
[331324796,1720230706416,167.156985,0.00021096,2]
[331324797,1720230716371,602.01052306,0.00043834,4]
[331324799,1720230731134,155.0528303,0.00043834,4]
[331324819,1720231558123,-172.198906,0.00021096,2]
[331324820,1720231558146,-300.0,0.00027999,2]
[331324821,1720231558168,-211.0,0.00027999,2]
[331324822,1720231558190,-1163.23398228,0.00028,30]
[331324824,1720231630142,-3176.77187616,0.00028,30]
[331324825,1720231637165,-560.67493815,0.00028,30]
[331324826,1720231647024,-4979.53464261,0.00028,30]
[331324827,1720231649640,-478.95551741,0.00028,30]
[331324829,1720231650160,-208.35130789,0.00033939,4]
[331324830,1720231651615,-172.198906,0.00033973,2]
[331324831,1720231651704,-4425.54083742,0.00034562,5]
[331324832,1720231652191,-172.58674043,0.00028,2]
[331324833,1720231652232,-3760.14361925,0.00034562,5]
[331324834,1720231653240,-2413.5425021,0.00035628,2]
[331324835,1720231654089,-175.310833,0.00036307,2]
[331324836,1720231654551,-166.666666,0.00036573,2]
[331324837,1720231655444,-204.160178,0.00037066,2]
[331324838,1720231656217,-166.666666,0.0003757,2]
[331324839,1720231657743,-42.83009015,0.00037807,2]
[331324840,1720231658945,-1074.11179075,0.00037807,2]
[331324841,1720231659287,-166.666666,0.00038567,2]
[331324842,1720231659739,-495.50543718,0.00038999,4]
[331324843,1720231660632,-532.06560572,0.00039177,4]
[331324844,1720231661536,-166.666666,0.00039564,2]
[331324845,1720231662002,-264.9057893,0.00039994,2]
[331324846,1720231662024,-360.56768716,0.00039999,4]
[331324847,1720231662046,-234.81066176,0.0004,120]
[331324848,1720231662067,-250.59593253,0.00040229,4]
[331324849,1720231662087,-372.20588866,0.00040229,4]
[331324850,1720231662107,-412.14637905,0.00040278,7]
[331324851,1720231662128,-435.0,0.00040278,2]
[331324852,1720231662147,-154.83420373,0.00040278,4]
[331324853,1720231662168,-268.95171548,0.00040278,4]
[331324854,1720231662188,-310.14420599,0.00040278,4]
[331324855,1720231662208,-155.24403697,0.00040278,10]
[331324856,1720231662230,-166.666666,0.00040561,2]
[331324857,1720231662253,-166.47861002,0.00040807,4]
[331324858,1720231662275,-256.25118647,0.00040999,4]
[331324859,1720231662296,-166.666666,0.00041559,2]
[331324860,1720231662316,-155.16093551,0.00041999,4]
[331324861,1720231662338,-537.32517777,0.00042629,30]
[331324862,1720231662361,-255.50398099,0.00043834,4]
[331324863,1720231662382,-1348.05508838,0.00043834,4]
[331324864,1720231662403,-1605.11527618,0.00043834,2]
[331324865,1720231662433,-141.8417984,0.00043834,2]
[331324866,1720231751445,-167.27766,0.00042891,2]
[331324867,1720231751822,-204.1601784,0.00043764,2]
[331324868,1720231752421,-40.49510128,0.00043834,2]
[331324869,1720231752445,-1506.3282973,0.00043834,60]
[331324870,1720231752467,-404.29201898,0.00043834,4]
[331324871,1720231752488,-255.61525075,0.00043834,2]
[331324872,1720231752510,-413.08396065,0.00043834,4]
[331324873,1720231752532,-314.21232894,0.00043834,120]
[331324874,1720231763887,566.29192821,0.00043834,4]
[331324877,1720231775763,312.97857034,0.00043834,4]
[331324879,1720231800984,157.52474722,0.00043834,4]
[331324932,1720231841906,-167.27766,0.00045814,2]
[331324934,1720231841916,-175.1,0.00046172,31]
[331324936,1720231841926,-175.1,0.00046456,31]
[331324938,1720231841935,-175.1,0.0004674,60]
[331324939,1720231841945,-172.198906,0.00046849,2]
[331324940,1720231841955,-3000.0,0.00047,2]
[331324941,1720231841965,-167.27766,0.00048738,2]
[331324942,1720231841974,-887.355,0.00048833,2]
[331324943,1720231841984,-171.33263277,0.00049019,30]
[331324944,1720231841994,-1000.0,0.00049199,120]
[331324945,1720231842003,-1000.0,0.00049199,120]
[331324946,1720231842013,-1000.0,0.00049199,120]
[331324948,1720231842022,-471.86592375,0.00049199,120]
[331324950,1720231842032,-1008.77,0.000492,50]
[331324952,1720231842041,-1000.0,0.000492,60]
[331324954,1720231842051,-1000.0,0.000492,80]
[331324956,1720231842061,-853.23369124,0.00049214,28]
[331324958,1720231842071,-183.27698813,0.00049214,2]
[331324960,1720231842081,-183.27698811,0.00049214,2]
[331324962,1720231842092,-183.27698811,0.00049215,2]
[331324964,1720231842102,-272.98728849,0.00049215,5]
[331324966,1720231842112,-839.38,0.00049295,3]
[331324968,1720231842121,-1310.54,0.00049295,3]
[331324970,1720231842131,-1092.12,0.00049295,3]
[331324972,1720231842142,-500.0,0.00049304,7]
[331324974,1720231842151,-436.50039602,0.00049304,7]
[331324976,1720231842160,-29397.48006675,0.00049305,6]
[331324982,1720231842204,-314.21232894,0.00049305,6]
[331324990,1720231842272,-0.05765736,0.00049305,6]
[331325327,1720231845564,-183.27698811,0.00049215,2]
[331325330,1720231845574,-142.69704573,0.00049305,6]
[331325352,1720231845728,-2934.95645684,0.00049305,6]
[331325613,1720231848461,566.29192821,0.00043834,4]
[331325765,1720231865915,314.21232894,0.00043834,120]
[331325766,1720231941816,797.84112734,0.00043834,4]
[331325779,1720232507067,-171.638693,0.00021096,2]
[331325781,1720232841413,-227.06479848,0.00021096,2]
[331325782,1720232850218,-419.62095979,0.00021096,2]
[331325783,1720232851613,-6549.5910125,0.00021096,2]
[331325784,1720232950621,-12321.64677156,0.00021096,2]
[331325785,1720232950986,-13129.64523296,0.00021096,2]
[331325786,1720232951896,-278.73235131,0.00023966,2]
[331325787,1720232951956,-155.60850019,0.00025204,2]
[331325788,1720232951984,-191.59893414,0.0002557,2]
[331325789,1720232952008,-171.638693,0.00035582,2]
[331325790,1720232952032,-167.2776624,0.00038417,2]
[331325791,1720232952054,-601.0404053,0.00039393,4]
[331325792,1720232952076,-425.05699387,0.00039994,4]
[331325793,1720232952100,-194.0934928,0.00040522,2]
[331325794,1720232952122,-1096.07744965,0.00041039,28]
[331325795,1720232952143,-160.0,0.00041139,3]
[331325796,1720232952165,-337.49979762,0.00041589,4]
[331325797,1720232952186,-160.0,0.00041961,4]
[331325798,1720232952210,-160.0,0.00042784,5]
[331325799,1720232952232,-160.0,0.00043607,6]
[331325800,1720232952253,-1096.07744965,0.00043698,28]
[331325801,1720232952434,-160.0,0.00044429,7]
[331325802,1720232953615,2927.63696074,0.00040229,4]
[331325803,1720233008842,635.84059012,0.00029557,2]
[331325859,1720233040248,-160.0,0.00045252,8]
[331325862,1720233040259,-160.0,0.00046075,9]
[331325866,1720233040270,-175.1,0.00046214,31]
[331325868,1720233040280,-1096.07744965,0.00046357,28]
[331325870,1720233040292,-175.1,0.00046495,31]
[331325872,1720233040303,-960.41866289,0.00046574,120]
[331325874,1720233040313,-662.16235192,0.00046575,120]
[331325876,1720233040324,-175.1,0.00046777,60]
[331325878,1720233040334,-160.0,0.00046897,10]
[331325879,1720233040345,-3000.0,0.00047,2]
[331325881,1720233040355,-160.0,0.0004772,11]
[331325882,1720233040365,-181.928659,0.00047987,30]
[331325883,1720233040376,-192.618439,0.00047987,30]
[331325884,1720233040386,-1008.77,0.00048,30]
[331325885,1720233040397,-293.3096853,0.00048493,2]
[331325886,1720233040407,-293.3096853,0.00048493,2]
[331325887,1720233040417,-293.3096853,0.00048493,2]
[331325888,1720233040427,-293.3096853,0.00048493,2]
[331325889,1720233040437,-293.3096853,0.00048493,2]
[331325890,1720233040447,-292.9084425,0.00048493,2]
[331325891,1720233040457,-160.0,0.00048542,12]
[331325892,1720233040468,-171.33263277,0.00048718,30]
[331325893,1720233040478,-154.65203293,0.00048762,4]
[331325894,1720233040490,-8245.37718086,0.000489,60]
[331325895,1720233040500,-600.0,0.0004892,2]
[331325896,1720233040510,-2040.34238499,0.00049,120]
[331325897,1720233040520,-500.0,0.00049,30]
[331325898,1720233040530,-1096.07744965,0.00049016,28]
[331325899,1720233040540,-171.33263277,0.00049054,30]
[331325900,1720233040551,-2154.34364187,0.000491,2]
[331325901,1720233040561,-2154.34364187,0.00049125,2]
[331325902,1720233040570,-155.0,0.0004914,58]
[331325903,1720233040580,-2154.34364187,0.0004915,2]
[331325904,1720233040589,-2726.99,0.0004917,3]
[331325905,1720233040600,-2272.49,0.0004917,3]
[331325906,1720233040611,-2154.34364187,0.00049175,2]
[331325908,1720233040621,-46629.52866231,0.00049179,61]
[331325910,1720233040631,-77535.8508814,0.0004918,6]
[331325912,1720233040641,-500.0,0.00049189,7]
[331325914,1720233040651,-500.0,0.00049189,7]
[331325916,1720233040662,-500.0,0.00049189,7]
[331325918,1720233040672,-500.0,0.00049189,7]
[331325920,1720233040682,-500.0,0.00049189,7]
[331325922,1720233040692,-500.0,0.00049189,7]
[331325924,1720233040702,-500.0,0.00049189,7]
[331325926,1720233040712,-500.0,0.00049189,7]
[331325928,1720233040722,-500.0,0.00049189,7]
[331325930,1720233040732,-178.50356417,0.00049189,7]
[331325932,1720233040742,-155071.701763,0.0004919,6]
[331325934,1720233040752,-500.0,0.000492,30]
[331325936,1720233040762,-500.7012908,0.000492,30]
[331325954,1720233040947,-104113.50785028,0.000492,120]
[331325956,1720233040966,-1596.99654872,0.000492,120]
[331325958,1720233040976,-912.90986801,0.000492,2]
[331325960,1720233040988,-1241.43377386,0.000492,2]
[331325962,1720233040999,-202.41723,0.000492,14]
[331325964,1720233041009,-202.41723,0.000492,14]
[331325966,1720233041019,-151.0,0.000492,14]
[331325968,1720233041029,-151.0,0.000492,14]
[331325970,1720233041039,-151.0,0.000492,14]
[331325972,1720233041048,-151.0,0.000492,14]
[331325974,1720233041058,-151.0,0.000492,14]
[331325976,1720233041068,-151.0,0.000492,14]
[331325978,1720233041078,-428.876418,0.000492,14]
[331325980,1720233041087,-428.876418,0.000492,14]
[331325982,1720233041097,-160.474912,0.000492,14]
[331325984,1720233041107,-151.0,0.000492,14]
[331325986,1720233041117,-180.084888,0.000492,14]
[331325988,1720233041129,-1632.653789,0.000492,14]
[331325990,1720233041139,-152.240499,0.000492,14]
[331325992,1720233041148,-1632.653789,0.000492,14]
[331325994,1720233041158,-151.0,0.000492,14]
[331325996,1720233041167,-747.16913,0.000492,14]
[331325998,1720233041177,-1366.474694,0.000492,14]
[331326000,1720233041187,-747.16913,0.000492,14]
[331326002,1720233041196,-1366.474694,0.000492,14]
[331326004,1720233041206,-151.0,0.000492,14]
[331326006,1720233041215,-565.421909,0.000492,14]
[331326008,1720233041225,-151.0,0.000492,14]
[331326010,1720233041234,-565.421909,0.000492,14]
[331326012,1720233041244,-151.0,0.000492,14]
[331326014,1720233041254,-1000.0,0.000492,50]
[331326016,1720233041263,-151.0,0.000492,14]
[331326017,1720233041272,-1000.0,0.000492,60]
[331326019,1720233041283,-1000.0,0.000492,80]
[331326020,1720233041293,-151.0,0.000492,14]
[331326021,1720233041302,-724.616094,0.000492,14]
[331326022,1720233041311,-724.616094,0.000492,14]
[331326023,1720233041320,-459.414613,0.000492,14]
[331326024,1720233041330,-459.414613,0.000492,14]
[331326025,1720233041339,-290.582392,0.000492,14]
[331326026,1720233041348,-151.0,0.000492,14]
[331326027,1720233041358,-151.0,0.00049205,14]
[331326029,1720233041367,-724.616094,0.00049205,14]
[331326031,1720233041377,-724.616094,0.00049205,14]
[331326034,1720233041387,-459.414613,0.00049205,14]
[331326037,1720233041397,-459.414613,0.00049205,14]
[331326040,1720233041406,-290.582392,0.00049205,14]
[331326043,1720233041416,-151.0,0.00049205,14]
[331326045,1720233041426,-7682.37969969,0.00049205,6]
[331326048,1720233041439,-296.5224266,0.00049205,6]
[331326050,1720233041450,-2399.638932,0.00049205,6]
[331326052,1720233041462,-16373.56989756,0.00049205,6]
[331326054,1720233041475,-372.33158597,0.00049205,6]
[331326056,1720233041486,-15084.09923625,0.00049205,6]
[331326059,1720233041498,-11765.0,0.00049205,6]
[331326061,1720233041510,-3495.27564017,0.00049205,6]
[331326240,1720233044987,-20067.03346316,0.00049205,6]
[331326241,1720233044997,-270.13098871,0.00049214,31]
[331326242,1720233045007,-500.0,0.00049214,120]
[331326243,1720233045020,-427.715612,0.00049214,120]
[331326244,1720233045031,-435.20606436,0.00049214,120]
[331326245,1720233045043,-259.10986881,0.00049214,120]
[331326246,1720233045053,-501.41974613,0.00049214,120]
[331326247,1720233045063,-166.36848058,0.00049214,120]
[331326248,1720233045073,-435.314662,0.00049214,120]
[331326249,1720233045083,-500.0,0.00049214,120]
[331326250,1720233045095,-500.0,0.00049214,120]
[331326251,1720233045104,-500.0,0.00049214,120]
[331326252,1720233045113,-500.0,0.00049214,120]
[331326253,1720233045126,-500.0,0.00049214,120]
[331326254,1720233045135,-500.0,0.00049214,120]
[331326255,1720233045145,-33569.10864542,0.00049215,61]
[331326256,1720233045154,-290.582392,0.00049215,14]
[331326257,1720233045164,-151.0,0.00049215,14]
[331326258,1720233045173,-36937.31180907,0.00049215,5]
[331326259,1720233045183,-2000.0,0.00049232,120]
[331326260,1720233045193,-565.421909,0.00049242,14]
[331326261,1720233045202,-565.421909,0.00049242,14]
[331326262,1720233045211,-151.0,0.00049242,14]
[331326264,1720233045221,-154.046342,0.00049242,14]
[331326265,1720233045232,-156.457919,0.00049285,14]
[331326266,1720233045241,-724.616094,0.00049285,14]
[331326267,1720233045250,-724.616094,0.00049285,14]
[331326268,1720233045260,-459.414613,0.00049285,14]
[331326269,1720233045269,-459.414613,0.00049285,14]
[331326270,1720233045279,-290.582392,0.00049285,14]
[331326271,1720233045289,-151.0,0.00049285,14]
[331326272,1720233045298,-77535.8508814,0.00049285,6]
[331326273,1720233045307,-151.0,0.00049295,14]
[331326274,1720233045317,-202.41723,0.00049295,14]
[331326275,1720233045327,-202.41723,0.00049295,14]
[331326276,1720233045338,-151.0,0.00049295,14]
[331326277,1720233045347,-151.0,0.00049295,14]
[331326278,1720233045356,-151.0,0.00049295,14]
[331326279,1720233045366,-151.0,0.00049295,14]
[331326280,1720233045376,-151.0,0.00049295,14]
[331326281,1720233045385,-151.0,0.00049295,14]
[331326282,1720233045396,-154.632837,0.00049295,14]
[331326283,1720233045405,-428.876418,0.00049295,14]
[331326284,1720233045414,-428.876418,0.00049295,14]
[331326285,1720233045424,-428.876418,0.00049295,14]
[331326286,1720233045433,-428.876418,0.00049295,14]
[331326287,1720233045442,-151.0,0.00049295,14]
[331326288,1720233045452,-151.0,0.00049295,14]
[331326289,1720233045463,-1632.653789,0.00049295,14]
[331326290,1720233045472,-1632.653789,0.00049295,14]
[331326291,1720233045482,-1632.653789,0.00049295,14]
[331326292,1720233045508,-1632.653789,0.00049295,14]
[331326293,1720233045543,-151.0,0.00049295,14]
[331326294,1720233045554,-151.0,0.00049295,14]
[331326295,1720233045563,-747.16913,0.00049295,14]
[331326296,1720233045573,-747.16913,0.00049295,14]
[331326297,1720233045582,-1366.474694,0.00049295,14]
[331326298,1720233045592,-747.16913,0.00049295,14]
[331326299,1720233045602,-1366.474694,0.00049295,14]
[331326300,1720233045611,-747.16913,0.00049295,14]
[331326301,1720233045621,-1366.474694,0.00049295,14]
[331326302,1720233045631,-1366.474694,0.00049295,14]
[331326303,1720233045640,-151.0,0.00049295,14]
[331326304,1720233045650,-151.0,0.00049295,14]
[331326305,1720233045659,-565.421909,0.00049295,14]
[331326306,1720233045669,-565.421909,0.00049295,14]
[331326307,1720233045678,-151.0,0.00049295,14]
[331326308,1720233045688,-151.0,0.00049295,14]
[331326309,1720233045697,-565.421909,0.00049295,14]
[331326310,1720233045707,-565.421909,0.00049295,14]
[331326311,1720233045719,-151.0,0.00049295,14]
[331326312,1720233045729,-151.0,0.00049295,14]
[331326313,1720233045739,-724.616094,0.00049295,14]
[331326314,1720233045748,-724.616094,0.00049295,14]
[331326315,1720233045758,-459.414613,0.00049295,14]
[331326316,1720233045768,-459.414613,0.00049295,14]
[331326317,1720233045777,-882.87357104,0.000493,30]
[331326318,1720233045787,-500.0,0.00049304,2]
[331326319,1720233045796,-1000.0,0.00049314,120]
[331326320,1720233045807,-1000.0,0.00049314,120]
[331326321,1720233045821,-1000.0,0.00049314,120]
[331326322,1720233045831,-1075.47971483,0.00049314,120]
[331326323,1720233045841,-151.0,0.00049315,14]
[331326324,1720233045850,-151.0,0.00049315,14]
[331326325,1720233045860,-182.788792,0.00049315,14]
[331326326,1720233045869,-182.788792,0.00049315,14]
[331326327,1720233045879,-151.0,0.00049315,14]
[331326328,1720233045888,-152.480649,0.00049315,14]
[331326329,1720233045900,-151.0,0.00049315,14]
[331326330,1720233045910,-151.0,0.00049315,14]
[331326331,1720233045919,-594.02,0.00049315,120]
[331326332,1720233045929,-594.02,0.00049315,120]
[331326333,1720233045938,-594.02,0.00049315,120]
[331326334,1720233046070,-594.02,0.00049315,120]
[331326335,1720233046097,-594.02,0.00049315,120]
[331326336,1720233046107,-594.02,0.00049315,120]
[331326337,1720233046118,-594.02,0.00049315,120]
[331326338,1720233046127,-594.02,0.00049315,120]
[331326339,1720233046136,-594.02,0.00049315,120]
[331326340,1720233046145,-594.02,0.00049315,120]
[331326341,1720233046155,-594.02,0.00049315,120]
[331326342,1720233046164,-594.02,0.00049315,120]
[331326343,1720233046174,-594.02,0.00049315,120]
[331326344,1720233046183,-594.02,0.00049315,120]
[331326345,1720233046192,-594.02,0.00049315,120]
[331326346,1720233046201,-594.02,0.00049315,120]
[331326347,1720233046211,-594.02,0.00049315,120]
[331326348,1720233046220,-594.02,0.00049315,120]
[331326349,1720233046230,-594.02,0.00049315,120]
[331326350,1720233046239,-594.02,0.00049315,120]
[331326351,1720233046250,-594.02,0.00049315,120]
[331326352,1720233046260,-594.02,0.00049315,120]
[331326353,1720233046270,-594.02,0.00049315,120]
[331326354,1720233046280,-594.21803175,0.00049315,120]
[331326355,1720233046292,-202.41723,0.00049315,14]
[331326356,1720233046303,-202.41723,0.00049315,14]
[331326357,1720233046314,-151.0,0.00049315,14]
[331326360,1720233046324,-151.0,0.00049315,14]
[331326364,1720233046334,-151.0,0.00049315,14]
[331326369,1720233046344,-151.0,0.00049315,14]
[331326373,1720233046354,-151.0,0.00049315,14]
[331326377,1720233046364,-428.876418,0.00049315,14]
[331326381,1720233046374,-428.876418,0.00049315,14]
[331326385,1720233046384,-151.0,0.00049315,14]
[331326388,1720233046395,-1632.653789,0.00049315,14]
[331326391,1720233046406,-1632.653789,0.00049315,14]
[331326394,1720233046416,-218.999364,0.00049315,14]
[331326397,1720233046427,-747.16913,0.00049315,14]
[331326400,1720233046437,-1366.474694,0.00049315,14]
[331326402,1720233046447,-747.16913,0.00049315,14]
[331326405,1720233046457,-1366.474694,0.00049315,14]
[331326407,1720233046467,-151.0,0.00049315,14]
[331326409,1720233046477,-565.421909,0.00049315,14]
[331326411,1720233046486,-2424.45,0.00049315,120]
[331326413,1720233046496,-2424.45,0.00049315,120]
[331326415,1720233046506,-151.0,0.00049315,14]
[331326417,1720233046515,-2424.45,0.00049315,120]
[331326419,1720233046525,-2424.45,0.00049315,120]
[331326421,1720233046537,-2424.45,0.00049315,120]
[331326423,1720233046548,-2424.45,0.00049315,120]
[331326424,1720233046569,-2424.45,0.00049315,120]
[331326427,1720233046584,-2424.45,0.00049315,120]
[331326428,1720233046604,-2424.45,0.00049315,120]
[331326430,1720233046614,-2424.45,0.00049315,120]
[331326432,1720233046624,-2424.45,0.00049315,120]
[331326434,1720233046633,-2424.45,0.00049315,120]
[331326436,1720233046643,-2424.45,0.00049315,120]
[331326438,1720233046653,-2424.45,0.00049315,120]
[331326440,1720233046662,-2424.45,0.00049315,120]
[331326442,1720233046672,-2424.45,0.00049315,120]
[331326444,1720233046681,-2424.45,0.00049315,120]
[331326446,1720233046691,-565.421909,0.00049315,14]
[331326448,1720233046700,-2424.45,0.00049315,120]
[331326450,1720233046710,-2424.45,0.00049315,120]
[331326452,1720233046719,-2424.45,0.00049315,120]
[331326454,1720233046728,-2424.45,0.00049315,120]
[331326456,1720233046737,-2424.45,0.00049315,120]
[331326458,1720233046747,-2424.45,0.00049315,120]
[331326460,1720233046757,-2424.45195342,0.00049315,120]
[331326462,1720233046766,-151.0,0.00049315,14]
[331326464,1720233046776,-724.616094,0.00049315,14]
[331326465,1720233046785,-724.616094,0.00049315,14]
[331326468,1720233046796,-459.414613,0.00049315,14]
[331326470,1720233046806,-459.414613,0.00049315,14]
[331326472,1720233046817,-290.582392,0.00049315,14]
[331326473,1720233046827,-290.582392,0.00049315,14]
[331326475,1720233046838,-151.0,0.00049315,14]
[331326477,1720233046847,-151.0,0.00049315,14]
[331326479,1720233046858,-168.0279184,0.00049315,30]
[331326481,1720233046868,-157.068087,0.00049331,120]
[331326483,1720233046877,-151.0,0.00049331,120]
[331326485,1720233046887,-428.876418,0.00049331,120]
[331326486,1720233046899,-428.876418,0.00049331,120]
[331326487,1720233046910,-151.0,0.00049331,120]
[331326488,1720233046922,-1632.653789,0.00049331,120]
[331326489,1720233046931,-1632.653789,0.00049331,120]
[331326490,1720233046941,-747.16913,0.00049331,120]
[331326491,1720233046951,-1366.474694,0.00049331,120]
[331326492,1720233046960,-747.16913,0.00049331,120]
[331326493,1720233046970,-1366.474694,0.00049331,120]
[331326494,1720233046980,-151.0,0.00049331,120]
[331326495,1720233046989,-151.0,0.00049331,120]
[331326496,1720233046999,-724.616094,0.00049331,120]
[331326497,1720233047009,-724.616094,0.00049331,120]
[331326498,1720233047018,-459.414613,0.00049331,120]
[331326499,1720233047028,-459.414613,0.00049331,120]
[331326500,1720233047038,-151.0,0.00049332,120]
[331326501,1720233047048,-151.0,0.00049332,120]
[331326502,1720233047059,-155.701301,0.00049332,120]
[331326503,1720233047068,-151.0,0.00049332,120]
[331326504,1720233047078,-151.0,0.00049332,120]
[331326505,1720233047088,-151.0,0.00049332,120]
[331326506,1720233047099,-151.0,0.00049332,120]
[331326507,1720233047109,-182.788792,0.00049332,120]
[331326508,1720233047119,-182.788792,0.00049332,120]
[331326509,1720233047129,-182.788792,0.00049332,120]
[331326510,1720233047138,-182.788792,0.00049332,120]
[331326511,1720233047148,-151.0,0.00049332,120]
[331326512,1720233047157,-156.480022,0.00049332,120]
[331326513,1720233047167,-151.0,0.00049332,14]
[331326514,1720233047176,-151.0,0.00049332,14]
[331326515,1720233047186,-282.440662,0.00049332,14]
[331326516,1720233047196,-202.41723,0.00049332,120]
[331326517,1720233047206,-202.41723,0.00049332,120]
[331326518,1720233047215,-151.0,0.00049332,120]
[331326519,1720233047225,-151.0,0.00049332,120]